bitfinex-derivatives/quotes_BTCF0:USTF0_20250716
["timestamp","ask_amount","ask_price","bid_price","bid_amount"]
[1752677751091,0.19123648,118990.0,118980.0,2.44916174]
[1752677751792,0.69123648,118990.0,118980.0,2.44916174]
[1752677752491,0.68631648,118990.0,118980.0,1.77074174]
[1752677752694,0.51827628,118990.0,118980.0,2.45326174]
[1752677752999,0.51827628,118990.0,118980.0,2.55896482]
[1752677753595,0.1680378,119020.0,119010.0,0.172572]
[1752677753790,0.01830882,119020.0,119010.0,1.39614252]
[1752677754697,0.18630662,119020.0,119010.0,0.71466252]
[1752677754888,0.18630662,119020.0,119010.0,1.39534252]
[1752677755091,0.18630662,119020.0,119010.0,1.28776916]
[1752677755791,0.01830882,119020.0,119010.0,1.28776916]
[1752677755997,0.18630662,119020.0,119010.0,0.60708916]
[1752677756301,0.18630662,119020.0,119010.0,1.28700916]
[1752677756494,0.1680378,119020.0,119010.0,0.60708916]
[1752677756693,0.1680378,119020.0,119010.0,1.28692916]
[1752677756893,4e-05,119020.0,119010.0,0.60708916]
[1752677757094,4e-05,119020.0,119010.0,1.35301233]
[1752677757499,4e-05,119020.0,119010.0,1.35257233]
[1752677758698,4e-05,119020.0,119010.0,0.91805517]
[1752677758904,4e-05,119020.0,119010.0,1.35257233]
[1752677759101,4e-05,119020.0,119010.0,0.23901517]
[1752677759398,4e-05,119020.0,119010.0,1.35201233]
[1752677759601,0.1680377,119020.0,119010.0,0.91741517]
[1752677759804,0.2100441,119000.0,118990.0,0.00456]
[1752677759994,0.2100434,119000.0,118990.0,0.8507473]
[1752677760190,0.2100434,119000.0,118990.0,0.1725873]
[1752677760395,0.2149134,119000.0,118990.0,0.8508273]
[1752677760696,0.1680362,119000.0,118990.0,0.8508273]
[1752677760896,0.1729062,119000.0,118990.0,0.74433614]
[1752677761101,0.1729062,119000.0,118990.0,0.23869624]
[1752677761405,0.1260467,118980.0,118960.0,1.2035376]
[1752677761698,0.1680542,118980.0,118970.0,0.8507884]
[1752677761904,0.2149336,118990.0,118980.0,0.1726142]
[1752677762197,0.1682401,118990.0,118980.0,1.28509136]
[1752677762391,0.0002,118990.0,118980.0,1.28509136]
[1752677762794,0.1682401,118990.0,118980.0,0.8502142]
[1752677763197,0.0002,118990.0,118980.0,1.3541528]
[1752677764288,0.74612,119020.0,119000.0,0.1680259]
[1752677764289,0.168012,119010.0,119000.0,0.1680259]
[1752677764501,0.168012,119010.0,119000.0,0.1725859]
[1752677764694,0.172882,119010.0,119000.0,0.00456]
[1752677764895,0.172882,119010.0,119000.0,0.68232]
[1752677765096,0.172882,119010.0,119000.0,0.67776]
[1752677765304,0.172882,119010.0,119000.0,0.845786]
[1752677765504,0.172882,119010.0,119000.0,0.67776]
[1752677765801,0.2149029,119000.0,118990.0,0.00456]
[1752677766008,0.25691,119000.0,118980.0,0.32505494]
[1752677766197,0.1308934,119000.0,118980.0,0.24102944]
[1752677766503,0.1729101,118990.0,118980.0,0.07298144]
[1752677766704,0.1729101,118990.0,118980.0,0.24103574]
[1752677766901,0.1680401,118990.0,118980.0,0.24103574]
[1752677767099,0.1680401,118990.0,118980.0,0.91855574]
[1752677767404,0.168036,119000.0,118990.0,0.1726001]
[1752677767597,0.2989095,119010.0,119000.0,0.168026]
[1752677767797,0.252044,119000.0,118990.0,0.1726001]
[1752677767998,0.1680401,118990.0,118980.0,0.28404014]
[1752677768198,0.1680401,118990.0,118980.0,0.96012014]
[1752677768896,0.48924,119020.0,118990.0,0.0420072]
[1752677769096,0.51238711,119020.0,119010.0,0.1725728]
[1752677769302,0.50751711,119020.0,119010.0,1.76864996]
[1752677769605,0.01831711,119020.0,119010.0,1.76864996]
[1752677769909,4e-05,119020.0,119010.0,1.76864996]
[1752677771312,4e-05,119020.0,119010.0,2.44284996]
[1752677771510,4e-05,119020.0,119010.0,1.76864996]
[1752677771705,4e-05,119020.0,119010.0,2.44292996]
[1752677772003,4e-05,119030.0,119020.0,0.1679987]
[1752677772207,4e-05,119030.0,119020.0,0.60707586]
[1752677772408,4e-05,119030.0,119020.0,1.28123586]
[1752677773511,4e-05,119030.0,119020.0,2.78123586]
[1752677773701,4e-05,119030.0,119020.0,2.10707586]
[1752677774005,4e-05,119030.0,119020.0,2.78019586]
[1752677774204,4e-05,119040.0,119030.0,0.60706176]
[1752677774506,0.6872364,119050.0,119040.0,0.1725305]
[1752677774703,0.70550831,119050.0,119040.0,0.1725305]
[1752677774903,0.53755191,119050.0,119040.0,0.60704766]
[1752677775109,0.70550831,119050.0,119040.0,0.1725305]
[1752677775314,0.53755191,119050.0,119040.0,0.60704766]
[1752677775501,0.51928,119050.0,119040.0,0.60704766]
[1752677776108,0.51928,119050.0,119040.0,1.27900766]
[1752677776409,0.51928,119050.0,119040.0,1.34489377]
[1752677776705,0.51928,119050.0,119040.0,1.36592185]
[1752677776906,0.51928,119050.0,119040.0,0.80104781]
[1752677777104,0.51928,119050.0,119040.0,1.47292781]
[1752677778309,0.48481,119050.0,119040.0,1.47292781]
[1752677778510,4e-05,119080.0,119070.0,0.1679283]
[1752677778708,4e-05,119080.0,119070.0,2.54109142]
[1752677778898,0.1728242,119080.0,119070.0,1.87073142]
[1752677779312,0.19121915,119080.0,119070.0,1.9995683]
[1752677779505,0.19121915,119080.0,119070.0,1.9994483]
[1752677779809,0.19121915,119080.0,119070.0,1.16128]
[1752677780110,0.19121915,119080.0,119070.0,1.9993284]
[1752677780897,0.18634915,119080.0,119070.0,2.54085152]
[1752677781102,0.00024,119080.0,119070.0,2.54085152]
[1752677782102,0.00024,119080.0,119070.0,1.87073152]
[1752677782306,0.00024,119080.0,119070.0,2.53977152]
[1752677782506,0.00024,119080.0,119070.0,1.87057152]
[1752677782706,0.00519,119080.0,119070.0,1.87057152]
[1752677783008,0.00519,119080.0,119070.0,2.53957152]
[1752677783210,0.00024,119080.0,119070.0,2.53957152]
[1752677783504,0.00024,119080.0,119070.0,1.87057152]
[1752677783711,0.00024,119080.0,119070.0,2.53921152]
[1752677783901,0.00024,119080.0,119070.0,1.87057152]
[1752677784301,0.00024,119080.0,119070.0,2.53981152]
[1752677784512,0.00024,119080.0,119070.0,1.86057152]
[1752677784711,0.00024,119080.0,119070.0,2.52977152]
[1752677784903,0.00024,119080.0,119070.0,1.9882484]
[1752677785104,0.00024,119080.0,119070.0,2.52977152]
[1752677787001,0.00999,119100.0,119070.0,2.53980312]
[1752677787306,0.12082166,119150.0,119070.0,2.53980312]
[1752677787307,0.2517916,119120.0,119110.0,0.1678579]
[1752677787518,0.17620623,119120.0,119110.0,0.1578579]
[1752677787708,0.17620623,119120.0,119110.0,0.8403779]
[1752677788112,0.17620623,119120.0,119110.0,0.8448779]
[1752677788407,0.00834833,119120.0,119110.0,0.8448779]
[1752677788612,0.00834833,119120.0,119110.0,1.45459811]
[1752677788805,0.00834833,119120.0,119110.0,0.77207811]
[1752677789110,4e-05,119150.0,119140.0,0.1678297]
[1752677789309,0.00499,119150.0,119140.0,0.8493897]
[1752677789704,4e-05,119150.0,119140.0,1.39517282]
[1752677790112,4e-05,119150.0,119140.0,0.8533697]
[1752677790310,4e-05,119150.0,119140.0,1.39489282]
[1752677791010,4e-05,119150.0,119140.0,1.41322491]
[1752677791216,0.00495,119170.0,119160.0,0.1678012]
[1752677791507,0.1477871,119170.0,119160.0,0.9407185]
[1752677791718,0.1477871,119170.0,119160.0,0.9303185]
[1752677792008,0.1527371,119170.0,119160.0,0.9303185]
[1752677792712,0.1527371,119170.0,119160.0,0.2461985]
[1752677792906,0.1527371,119170.0,119140.0,0.06028939]
[1752677792907,0.172766,119150.0,119140.0,1.34670929]
[1752677793105,0.172766,119150.0,119140.0,2.11426209]
[1752677793410,0.172766,119150.0,119140.0,2.11876209]
[1752677793709,0.167816,119150.0,119140.0,2.03460929]
[1752677793913,0.167816,119150.0,119140.0,2.57613241]
[1752677794112,0.167816,119150.0,119140.0,2.03460929]
[1752677794311,0.167816,119150.0,119140.0,1.35120929]
[1752677794513,0.172766,119150.0,119140.0,1.86245209]
[1752677794713,0.172766,119150.0,119140.0,1.17889209]
[1752677795012,0.172766,119150.0,119140.0,2.57152461]
[1752677795220,0.172766,119150.0,119140.0,1.89274461]
[1752677795517,0.172766,119150.0,119140.0,1.92920604]
[1752677795708,0.71428912,119150.0,119140.0,1.17889209]
[1752677795904,0.71428912,119150.0,119140.0,1.84332]
[1752677796113,0.172766,119150.0,119140.0,1.84332]
[1752677796306,0.71428912,119150.0,119140.0,1.84332]
[1752677796816,1.63215312,119150.0,119140.0,1.84332]
[1752677797312,1.63215312,119150.0,119140.0,1.84264]
[1752677797709,1.21428912,119150.0,119140.0,1.84264]
[1752677798014,1.21428912,119150.0,119140.0,1.16056]
[1752677798210,0.672766,119150.0,119140.0,1.16056]
[1752677798416,0.672766,119150.0,119140.0,2.0098301]
[1752677799010,1.21428912,119150.0,119140.0,2.0098301]
[1752677799207,0.672766,119150.0,119140.0,2.0098301]
[1752677799404,1.24428912,119150.0,119140.0,1.3283901]
[1752677799609,1.24428912,119150.0,119140.0,2.0119101]
[1752677799808,1.24428912,119150.0,119140.0,1.16056]
[1752677799809,1.41215312,119150.0,119140.0,1.16056]
[1752677800113,0.87063,119150.0,119140.0,1.84408]
[1752677800312,0.702766,119150.0,119140.0,1.87441322]
[1752677800511,0.697816,119150.0,119140.0,1.87441322]
[1752677800717,1.24428912,119150.0,119140.0,1.84508]
[1752677800919,1.24428912,119150.0,119140.0,1.16056]
[1752677801314,0.74428912,119150.0,119140.0,1.84484]
[1752677801510,0.74428912,119150.0,119140.0,2.0126701]
[1752677801815,0.202766,119150.0,119140.0,2.0126701]
[1752677802117,0.03,119150.0,119140.0,2.55869322]
[1752677803115,0.02505,119150.0,119140.0,2.55869322]
[1752677803321,1e-07,119150.0,119140.0,3.26808033]
[1752677803520,0.00495,119190.0,119180.0,0.1677728]
[1752677803818,0.27986942,119200.0,119190.0,0.1677587]
[1752677804012,0.02843952,119200.0,119190.0,1.3279987]
[1752677804208,0.02348952,119200.0,119190.0,1.86952182]
[1752677804621,0.19123492,119200.0,119190.0,1.86952182]
[1752677805016,0.02348952,119200.0,119190.0,1.86952182]
[1752677805215,0.19123492,119200.0,119190.0,2.55172182]
[1752677805416,0.02348952,119200.0,119190.0,2.55172182]
[1752677805617,0.02352952,119200.0,119190.0,2.55152182]
[1752677805813,0.02352952,119200.0,119190.0,2.0099987]
[1752677806013,0.02352952,119200.0,119190.0,2.55152182]
[1752677806214,0.02352952,119200.0,119190.0,2.61975687]
[1752677807317,0.19622512,119200.0,119190.0,1.22847505]
[1752677807618,0.19622512,119200.0,119190.0,1.90887505]
[1752677807813,0.19622512,119200.0,119190.0,2.07663425]
[1752677808009,0.23622512,119200.0,119190.0,2.07663425]
[1752677808215,0.23622512,119200.0,119190.0,1.90887505]
[1752677808409,0.23622512,119200.0,119190.0,2.07663425]
[1752677808616,0.06847952,119200.0,119190.0,2.61815737]
[1752677808818,0.2179754,119200.0,119190.0,2.61815737]
[1752677809021,0.05023,119200.0,119190.0,2.61815737]
[1752677809417,0.04528,119200.0,119190.0,2.61815737]
[1752677809822,0.04528,119200.0,119190.0,1.93775737]
[1752677810119,0.04528,119200.0,119190.0,2.61663737]
[1752677810322,0.04528,119200.0,119190.0,2.07511425]
[1752677810819,0.04528,119200.0,119190.0,2.61663737]
[1752677811410,0.2130254,119200.0,119190.0,2.61575737]
[1752677811620,0.04528,119200.0,119190.0,2.61575737]
[1752677812021,0.2130254,119200.0,119190.0,2.61575737]
[1752677812325,0.2130254,119200.0,119190.0,1.93775737]
[1752677812526,0.2176354,119200.0,119190.0,0.23599425]
[1752677813422,0.2562688,119190.0,119180.0,1.3694705]
[1752677813626,0.2564688,119190.0,119180.0,2.11227326]
[1752677813815,0.00481,119190.0,119180.0,2.65379638]
[1752677814013,0.0002,119190.0,119180.0,2.65379638]
[1752677815216,0.02938,119200.0,119190.0,0.1677595]
[1752677815427,0.02938,119200.0,119190.0,0.70928262]
[1752677816030,0.02938,119200.0,119190.0,1.38540262]
[1752677816323,0.02938,119200.0,119190.0,1.66859774]
[1752677816625,0.02938,119200.0,119190.0,1.80271462]
[1752677816923,0.02938,119200.0,119190.0,0.70928262]
[1752677817122,0.02938,119200.0,119190.0,1.38444262]
[1752677817328,0.0027763,119200.0,119190.0,1.38444262]
[1752677817628,0.167715,119250.0,119240.0,0.1676891]
[1752677817827,0.00825085,119250.0,119240.0,2.53814222]
[1752677818219,0.00825085,119250.0,119240.0,2.01501595]
[1752677818523,0.00825085,119250.0,119240.0,2.55653907]
[1752677819523,0.00825085,119250.0,119240.0,1.88193907]
[1752677819718,0.00825085,119250.0,119240.0,2.55601907]
[1752677819914,0.00825085,119250.0,119240.0,1.88193907]
[1752677820119,0.00825085,119250.0,119240.0,2.55573907]
[1752677820319,0.167675,119250.0,119240.0,2.09781725]
[1752677820623,0.172285,119250.0,119240.0,1.24972863]
[1752677820828,0.172285,119250.0,119240.0,1.83368]
[1752677821017,0.71380812,119250.0,119240.0,1.15972]
[1752677821219,0.172285,119250.0,119240.0,1.83768]
[1752677821417,0.00461,119250.0,119240.0,1.86893222]
[1752677821731,0.2560925,119270.0,119260.0,0.167661]
[1752677822027,0.172271,119260.0,119250.0,0.2141964]
[1752677822231,0.00461,119260.0,119250.0,0.8921164]
[1752677822419,0.172271,119260.0,119250.0,0.22396352]
[1752677822617,0.00461,119260.0,119250.0,0.76548664]
[1752677822822,0.00461,119260.0,119250.0,0.8918764]
[1752677823022,0.18643018,119280.0,119270.0,0.1676469]
[1752677823231,0.1676729,119280.0,119270.0,0.8451669]
[1752677823728,0.1722829,119280.0,119270.0,0.8454869]
[1752677823921,0.00465,119280.0,119270.0,0.8500969]
[1752677824230,0.1722829,119280.0,119270.0,0.8500969]
[1752677824621,0.1722829,119280.0,119270.0,0.1722569]
[1752677824827,0.1722829,119280.0,119270.0,0.8448069]
[1752677825026,0.1722829,119280.0,119270.0,0.84480692]
[1752677825729,0.1722829,119280.0,119270.0,0.16768692]
[1752677826023,0.1722829,119280.0,119270.0,4.002e-05]
[1752677826024,1.21380602,119280.0,119270.0,4.002e-05]
[1752677826224,1.23216431,119280.0,119270.0,4.002e-05]
[1752677826431,0.69064119,119280.0,119270.0,4.002e-05]
[1752677826824,0.69064119,119280.0,119270.0,0.67680002]
[1752677827024,1.23216431,119280.0,119270.0,0.84444692]
[1752677827227,1.23216431,119280.0,119270.0,0.84456692]
[1752677827431,0.69064119,119280.0,119270.0,0.84456692]
[1752677827831,1.23216431,119280.0,119270.0,0.84456692]
[1752677828032,0.69064119,119280.0,119270.0,0.16768692]
[1752677828226,0.69064119,119280.0,119270.0,0.84448692]
[1752677828441,0.52300829,119280.0,119270.0,0.84448692]
[1752677828630,0.73064119,119280.0,119270.0,0.84909692]
[1752677828833,0.73064119,119280.0,119270.0,0.84448692]
[1752677829132,0.2122829,119280.0,119270.0,0.84448692]
[1752677829630,0.04465,119280.0,119270.0,1.38601004]
[1752677829928,0.04004,119280.0,119270.0,1.39062004]
[1752677830333,0.04004,119280.0,119270.0,1.55830004]
[1752677830334,0.03543,119280.0,119270.0,1.55830004]
[1752677830528,0.03543,119280.0,119270.0,2.54906004]
[1752677830739,0.03543,119280.0,119270.0,2.54922004]
[1752677831124,0.03543,119280.0,119270.0,0.71382004]
[1752677831341,0.04004,119280.0,119270.0,1.86829004]
[1752677831632,0.03543,119280.0,119270.0,2.54397004]
[1752677832128,0.03543,119280.0,119270.0,1.86829004]
[1752677832334,0.03563,119280.0,119270.0,2.54329004]
[1752677832937,0.03563,119280.0,119270.0,1.86829004]
[1752677833343,0.2078728,119280.0,119270.0,2.00104692]
[1752677833637,0.2078728,119280.0,119270.0,2.54257004]
[1752677833947,0.74939592,119280.0,119270.0,0.16768682]
[1752677834136,0.2078728,119280.0,119270.0,0.84128682]
[1752677834335,0.2078728,119280.0,119270.0,4.002e-05]
[1752677834634,0.2078728,119280.0,119270.0,0.84104682]
[1752677835134,0.2078728,119280.0,119270.0,0.16768682]
[1752677835338,0.2078728,119280.0,119270.0,0.84056682]
[1752677836241,0.04024,119280.0,119270.0,0.84056682]
[1752677836538,0.2078728,119280.0,119270.0,0.84056682]
[1752677836741,0.2078728,119280.0,119270.0,0.83992682]
[1752677836937,0.22594131,119280.0,119270.0,0.83992682]
[1752677837540,0.72594131,119280.0,119270.0,0.67252002]
[1752677837744,0.72594131,119280.0,119270.0,0.84016682]
[1752677837932,0.55830851,119280.0,119270.0,0.16768682]
[1752677838245,0.55830851,119280.0,119270.0,0.84000682]
[1752677838840,0.55830851,119280.0,119270.0,1.38152994]
[1752677839040,0.05830851,119280.0,119270.0,0.84000682]
[1752677839239,0.22594131,119280.0,119270.0,1.38152994]
[1752677839741,0.22594131,119280.0,119270.0,0.67236002]
[1752677839940,0.76746443,119280.0,119270.0,4.002e-05]
[1752677840143,0.76746443,119280.0,119270.0,0.83884682]
[1752677840446,0.76746443,119280.0,119270.0,0.83864682]
[1752677840845,1.26746443,119280.0,119270.0,0.83864682]
[1752677841251,1.26746443,119280.0,119270.0,0.83824682]
[1752677841451,0.72594131,119280.0,119270.0,0.83824682]
[1752677841639,1.26746443,119280.0,119270.0,0.16768682]
[1752677841849,1.26746443,119280.0,119270.0,0.83776682]
[1752677842042,0.72594131,119280.0,119270.0,0.83776682]
[1752677842948,0.55830851,119280.0,119270.0,0.16768682]
[1752677843149,0.72594131,119280.0,119270.0,0.83792682]
[1752677843347,0.72594131,119280.0,119270.0,0.16768682]
[1752677843548,1.26746443,119280.0,119270.0,4.002e-05]
[1752677843743,1.26746443,119280.0,119270.0,0.67024002]
[1752677843939,1.26746443,119280.0,119270.0,0.16768682]
[1752677844140,1.43514443,119280.0,119270.0,0.67020002]
[1752677844341,1.43514443,119280.0,119240.0,0.18597411]
[1752677844342,0.00454,119260.0,119240.0,0.18597411]
[1752677844547,0.00454,119260.0,119240.0,0.31173721]
[1752677844548,0.54606312,119250.0,119240.0,0.31173721]
[1752677844746,0.02260851,119250.0,119240.0,1.52342033]
[1752677844944,0.02260851,119250.0,119240.0,0.85326033]
[1752677845146,0.2140999,119270.0,119260.0,0.2514719]
[1752677845347,0.23222574,119270.0,119260.0,0.2514719]
[1752677845741,0.23222574,119270.0,119260.0,0.209559]
[1752677845949,0.1722009,119260.0,119250.0,0.2514983]
[1752677846247,0.19032674,119260.0,119250.0,0.2514983]
[1752677846453,0.19032674,119260.0,119250.0,0.9212983]
[1752677846840,0.19032674,119260.0,119250.0,0.9210583]
[1752677847044,0.02266584,119260.0,119250.0,0.9210583]
[1752677847244,0.02266584,119260.0,119250.0,1.46258142]
[1752677847445,0.01812584,119260.0,119250.0,1.46258142]
[1752677847646,0.291426,119280.0,119270.0,0.1676468]
[1752677847945,0.30957329,119280.0,119270.0,0.8366468]
[1752677848351,0.05811729,119280.0,119270.0,0.8366468]
[1752677848539,0.05811729,119280.0,119270.0,1.37816992]
[1752677848946,0.55811729,119280.0,119270.0,1.37816992]
[1752677849141,0.55357729,119280.0,119270.0,1.37816992]
[1752677849853,0.53543,119280.0,119270.0,1.37816992]
[1752677850047,0.50846435,119280.0,119270.0,1.37816992]
[1752677850450,0.00846435,119280.0,119270.0,1.37816992]
[1752677851053,0.00822433,119280.0,119270.0,1.37816992]
[1752677851250,0.00822433,119280.0,119270.0,0.70916992]
[1752677851461,0.00822433,119280.0,119270.0,1.37804992]
[1752677852353,0.00454,119310.0,119300.0,0.1676046]
[1752677852654,0.01269187,119310.0,119300.0,0.8264846]
[1752677852857,0.51269187,119310.0,119300.0,1.36800772]
[1752677853154,0.1676046,119300.0,119290.0,1.3683534]
[1752677853357,0.1676046,119300.0,119290.0,1.9952987]
[1752677853553,0.1676046,119300.0,119290.0,1.3264587]
[1752677853953,0.1676046,119300.0,119290.0,1.9952987]
[1752677854260,1.33482672,119310.0,119300.0,0.1676046]
[1752677854451,0.83482672,119310.0,119300.0,0.1676046]
[1752677854651,0.1676046,119300.0,119290.0,1.41025]
[1752677854957,0.71366772,119300.0,119290.0,1.9952187]
[1752677855145,0.1721446,119300.0,119290.0,1.9952187]
[1752677855760,0.6721446,119300.0,119290.0,1.3264587]
[1752677856061,0.6721446,119300.0,119290.0,1.9997587]
[1752677856062,0.50454,119300.0,119290.0,1.9997587]
[1752677856248,0.6721446,119300.0,119290.0,1.9997587]
[1752677856561,0.6721446,119300.0,119290.0,1.9952187]
[1752677857350,1.21366772,119300.0,119290.0,1.82756]
[1752677857555,1.21366772,119300.0,119290.0,1.15884]
[1752677857752,1.21366772,119300.0,119290.0,1.82756]
[1752677857753,1.38131572,119300.0,119290.0,1.82756]
[1752677857955,1.38131572,119300.0,119290.0,1.9951787]
[1752677858153,1.21366772,119300.0,119290.0,1.9951787]
[1752677858354,0.6721446,119300.0,119290.0,1.9951787]
[1752677859458,1.25366772,119300.0,119290.0,1.3264587]
[1752677859658,1.42231572,119300.0,119290.0,1.3264586]
[1752677859854,1.42231572,119300.0,119290.0,1.82752]
[1752677860054,1.42231572,119300.0,119290.0,1.9951386]
[1752677860360,1.42231572,119300.0,119290.0,1.82752]
[1752677860949,1.42231572,119300.0,119290.0,1.15884]
[1752677861160,1.98259398,119300.0,119290.0,1.82748]
[1752677861363,1.98259398,119300.0,119290.0,1.15884]
[1752677861560,1.44107086,119300.0,119290.0,1.82748]
[1752677861865,1.44107086,119300.0,119280.0,0.1678327]
[1752677861866,0.1721586,119290.0,119280.0,0.1678327]
[1752677862067,0.71388172,119290.0,119280.0,0.8362327]
[1752677862257,0.88154572,119290.0,119280.0,0.8362327]
[1752677862565,0.88154572,119290.0,119280.0,0.6686]
[1752677862855,0.71388172,119290.0,119280.0,0.6686]
[1752677863059,1.21488172,119290.0,119280.0,0.6686]
[1752677864560,1.23302264,119290.0,119280.0,0.6686]
[1752677865762,0.1676327,119280.0,119270.0,0.0002]
[1752677865964,0.1676327,119280.0,119270.0,0.1676467]
[1752677865965,0.85776914,119280.0,119270.0,0.1676467]
[1752677866169,0.1721867,119270.0,119260.0,0.1678524]
[1752677866354,0.1721867,119270.0,119250.0,1.2844734]
[1752677866355,0.1722008,119260.0,119250.0,0.1678667]
[1752677866659,0.1724008,119260.0,119250.0,0.8361867]
[1752677866859,0.1676748,119250.0,119240.0,0.29307327]
[1752677867062,0.1724148,119250.0,119240.0,0.08326857]
[1752677867258,0.1724148,119250.0,119230.0,1.78433152]
[1752677867259,0.2981759,119250.0,119230.0,1.78433152]
[1752677867453,0.2981759,119250.0,119240.0,0.8361689]
[1752677867761,0.2981759,119250.0,119240.0,0.01681499]
[1752677867955,0.2981759,119250.0,119240.0,0.66848]
[1752677867956,0.31625229,119250.0,119240.0,0.66848]
[1752677868162,0.1722289,119240.0,119230.0,1.4105011]
[1752677868361,0.1724289,119240.0,119230.0,2.0847811]
[1752677868755,0.1724289,119240.0,119230.0,2.10158044]
[1752677869069,0.1905006,119240.0,119230.0,2.09558044]
[1752677869261,0.1905006,119240.0,119230.0,1.42710044]
[1752677869568,0.1905006,119240.0,119230.0,2.09554044]
[1752677869769,0.0228117,119240.0,119230.0,2.63706356]
[1752677869957,0.1724289,119240.0,119230.0,2.16199468]
[1752677870269,0.6724289,119240.0,119230.0,2.7035178]
[1752677870469,0.6678889,119240.0,119230.0,2.7080578]
[1752677870662,0.5002,119240.0,119230.0,2.7080578]
[1752677870967,0.6678889,119240.0,119230.0,2.0396178]
[1752677871164,0.6678889,119240.0,119230.0,2.7080578]
[1752677871570,0.5002,119240.0,119230.0,2.16653468]
[1752677871763,0.6678889,119240.0,119230.0,2.7080578]
[1752677871967,0.6678889,119240.0,119230.0,2.0396178]
[1752677872168,0.6678889,119240.0,119230.0,2.7080578]
[1752677872860,0.1678889,119240.0,119230.0,2.7100578]
[1752677873765,0.1728289,119240.0,119230.0,2.08010628]
[1752677873962,0.1728289,119240.0,119230.0,1.24401358]
[1752677874162,0.1728289,119240.0,119230.0,1.91233358]
[1752677874363,0.1728289,119240.0,119230.0,1.41171648]
[1752677874562,0.1728289,119240.0,119230.0,2.08003648]
[1752677874965,0.1728289,119240.0,119230.0,1.24401358]
[1752677875166,0.6728289,119240.0,119230.0,1.41171648]
[1752677875373,1.21435202,119240.0,119230.0,2.07999648]
[1752677875567,0.6728289,119240.0,119230.0,2.07999648]
[1752677876171,0.6728289,119240.0,119230.0,1.41171648]
[1752677876370,0.6728289,119240.0,119230.0,2.08003648]
[1752677876976,0.6728289,119240.0,119230.0,2.07999648]
[1752677877665,0.6728289,119240.0,119230.0,2.07995648]
[1752677878374,1.38208802,119240.0,119230.0,0.6702]
[1752677878564,0.1726429,119230.0,119220.0,0.0002]
[1752677878760,0.167717,119220.0,119210.0,0.06698912]
[1752677878976,0.71438012,119220.0,119210.0,0.06678912]
[1752677879173,0.71438012,119220.0,119210.0,0.73494912]
[1752677879367,0.71438012,119220.0,119210.0,0.75184299]
[1752677879768,0.71438012,119220.0,119210.0,0.08368299]
[1752677880073,0.71438012,119220.0,119210.0,0.85278487]
[1752677880372,0.167731,119210.0,119200.0,0.00027429]
[1752677880666,0.71439412,119210.0,119200.0,0.66815429]
[1752677881072,0.71439412,119210.0,119200.0,0.83589939]
[1752677881266,0.172871,119210.0,119200.0,0.83589939]
[1752677881470,0.17299613,119210.0,119200.0,0.84043939]
[1752677881668,0.00032513,119210.0,119200.0,0.17235939]
[1752677881868,0.17299613,119210.0,119200.0,0.83585939]
[1752677882069,0.67299613,119210.0,119200.0,0.83585939]
[1752677882268,1.21451925,119210.0,119200.0,0.16781939]
[1752677882571,0.67299613,119210.0,119200.0,0.92319522]
[1752677882873,0.67303613,119210.0,119200.0,0.92319522]
[1752677883181,0.66809613,119210.0,119200.0,0.92319522]
[1752677883363,0.16809613,119210.0,119200.0,0.92319522]
[1752677884276,0.17303613,119210.0,119200.0,0.25061522]
[1752677884476,0.17303613,119210.0,119200.0,0.91865522]
[1752677884773,1.23335784,119210.0,119200.0,0.01634096]
[1752677884974,1.89033384,119210.0,119200.0,0.01634096]
[1752677885272,0.167745,119200.0,119190.0,0.66812]
[1752677885461,0.71440812,119200.0,119190.0,0.66792]
[1752677885661,0.71440812,119200.0,119180.0,0.06669561]
[1752677885867,0.1677731,119180.0,119170.0,0.0002]
[1752677886066,0.1677731,119180.0,119160.0,0.00454]
[1752677886067,0.1727272,119170.0,119160.0,0.0002]
[1752677886272,0.1727413,119160.0,119150.0,1.34361812]
[1752677886568,0.1727553,119150.0,119140.0,0.0002]
[1752677886871,0.1727694,119140.0,119130.0,0.1680435]
[1752677887071,0.1678435,119130.0,119120.0,0.9198943]
[1752677887270,0.1680435,119130.0,119120.0,0.9196943]
[1752677887467,0.0002,119130.0,119120.0,0.2563143]
[1752677887777,0.1680435,119130.0,119120.0,1.46587742]
[1752677887979,0.1680435,119130.0,119120.0,0.2563143]
[1752677888173,0.2080435,119130.0,119120.0,0.9243543]
[1752677888573,0.2080435,119130.0,119120.0,0.9273543]
[1752677888769,0.2129835,119130.0,119120.0,0.2173501]
[1752677888970,0.75450662,119130.0,119120.0,0.003]
[1752677889572,0.75450662,119130.0,119120.0,0.67092]
[1752677889776,1.25450662,119130.0,119120.0,0.003]
[1752677890271,1.42239462,119130.0,119120.0,0.003]
[1752677890477,1.48854618,119130.0,119120.0,0.003]
[1752677890674,0.94702306,119130.0,119120.0,0.1708575]
[1752677890877,1.48854618,119130.0,119120.0,0.003]
[1752677891485,1.48854618,119130.0,119120.0,0.1708575]
[1752677891678,0.7129835,119130.0,119120.0,0.1708575]
[1752677891883,0.7129835,119130.0,119120.0,0.8387775]
[1752677892680,0.6729835,119130.0,119120.0,0.8387775]
[1752677893177,0.5002,119130.0,119120.0,0.71692062]
[1752677893380,0.49566,119130.0,119120.0,2.54460062]
[1752677893681,0.46103622,119130.0,119120.0,2.96148861]
[1752677893881,0.46103622,119130.0,119120.0,2.41996549]
[1752677894076,0.46103622,119130.0,119120.0,2.96148861]
[1752677894277,0.46103622,119130.0,119120.0,2.96040861]
[1752677894476,0.1678217,119150.0,119140.0,0.1678293]
[1752677894676,0.1478217,119150.0,119140.0,1.37719242]
[1752677895381,0.1478217,119150.0,119140.0,1.20936312]
[1752677895683,0.1527617,119150.0,119140.0,1.20936312]
[1752677897176,0.1537617,119150.0,119140.0,1.20936312]
[1752677897983,0.1537617,119150.0,119140.0,0.66784]
[1752677897984,0.1538017,119150.0,119140.0,0.66784]
[1752677899983,0.1678294,119140.0,119130.0,0.54152312]
[1752677900191,0.1678294,119140.0,119130.0,1.20900312]
[1752677900192,0.2517486,119140.0,119130.0,1.20900312]
[1752677900378,0.2517486,119140.0,119130.0,0.54152312]
[1752677900578,0.2517486,119140.0,119130.0,1.20896312]
[1752677900782,0.1678435,119130.0,119120.0,1.70136312]
[1752677900979,0.1678435,119130.0,119120.0,1.15984]
[1752677901178,0.1726235,119130.0,119120.0,1.82724]
[1752677901383,0.1726235,119130.0,119120.0,2.36876312]
[1752677902493,0.1726235,119130.0,119120.0,1.82724]
[1752677902986,0.1726235,119130.0,119120.0,0.6984]
[1752677903383,0.6726235,119130.0,119120.0,0.6984]
[1752677904684,0.1726235,119130.0,119120.0,0.6984]
[1752677905483,0.1726635,119130.0,119120.0,0.6984]
[1752677907293,0.6726635,119130.0,119120.0,1.40778072]
[1752677908590,0.6726635,119130.0,119120.0,0.69788]
[1752677908791,0.1726635,119130.0,119120.0,0.69788]